[Event "Titled Tuesday Blitz November 15 Late 2022"]
[White "Rose, Felix"]
[Black "Proleiko, Julian"]
[WhiteFideId "5105722"]
[BlackFideId "30900255"]
[WhiteElo "2039"]
[BlackElo "2127"]
[Result "0-1"]
[Round "01"]
[TimeControl "180+1"]
[Date "2022.11.16"]
[WhiteClock "0:00:10"]
[BlackClock "0:00:27"]

1. d4 {[%clk 0:02:57]}  d5 {[%clk 0:02:59]} 2. Nf3 {[%clk 0:02:57]}  Nf6 {[%clk 0:02:58]} 3. Bf4 {[%clk 0:02:56]}  e6 {[%clk 0:02:57]} 4. e3 {[%clk 0:02:56]}  Bd6 {[%clk 0:02:56]} 5. Ne5 {[%clk 0:02:56]}  O-O {[%clk 0:02:55]} 6. Bd3 {[%clk 0:02:55]}  b6 {[%clk 0:02:53]} 7. Nd2 {[%clk 0:02:54]}  Bb7 {[%clk 0:02:53]} 8. h4 {[%clk 0:02:53]}  c5 {[%clk 0:02:52]} 9. c3 {[%clk 0:02:53]}  Qc7 {[%clk 0:02:51]} 10. Qf3 {[%clk 0:02:48]}  Nbd7 {[%clk 0:02:42]} 11. Qg3 {[%clk 0:02:25]}  Nh5 {[%clk 0:02:33]} 12. Qg5 {[%clk 0:02:24]}  Nxf4 {[%clk 0:02:27]} 13. exf4 {[%clk 0:02:25]}  h6 {[%clk 0:02:14]} 14. Qg3 {[%clk 0:02:20]}  Nf6 {[%clk 0:02:09]} 15. h5 {[%clk 0:02:17]}  cxd4 {[%clk 0:02:04]} 16. cxd4 {[%clk 0:02:17]}  Bb4 {[%clk 0:02:04]} 17. Qe3 {[%clk 0:02:06]}  Rac8 {[%clk 0:01:56]} 18. f3 {[%clk 0:01:55]}  Nd7 {[%clk 0:01:53]} 19. Kf2 {[%clk 0:01:46]}  Nxe5 {[%clk 0:01:50]} 20. fxe5 {[%clk 0:01:44]}  f6 {[%clk 0:01:49]} 21. exf6 {[%clk 0:01:34]}  Rxf6 {[%clk 0:01:50]} 22. Nb3 {[%clk 0:01:34]}  Qf4 {[%clk 0:01:46]} 23. Qxf4 {[%clk 0:01:33]}  Rxf4 {[%clk 0:01:47]} 24. Ke3 {[%clk 0:01:33]}  Rcf8 {[%clk 0:01:42]} 25. Rac1 {[%clk 0:01:27]}  Bd6 {[%clk 0:01:42]} 26. Rc3 {[%clk 0:01:16]}  e5 {[%clk 0:01:33]} 27. Rc2 {[%clk 0:00:56]}  exd4+ {[%clk 0:01:31]} 28. Kf2 {[%clk 0:00:43]}  a5 {[%clk 0:01:25]} 29. Nc1 {[%clk 0:00:37]}  Bc5 {[%clk 0:01:16]} 30. Ne2 {[%clk 0:00:36]}  R4f6 {[%clk 0:01:14]} 31. a3 {[%clk 0:00:35]}  a4 {[%clk 0:01:13]} 32. Rh4 {[%clk 0:00:29]}  Bc8 {[%clk 0:01:01]} 33. Kg3 {[%clk 0:00:26]}  Bf5 {[%clk 0:00:58]} 34. Bxf5 {[%clk 0:00:25]}  Rxf5 {[%clk 0:00:58]} 35. Nxd4 {[%clk 0:00:25]}  Rg5+ {[%clk 0:00:57]} 36. Kh3 {[%clk 0:00:22]}  Bd6 {[%clk 0:00:43]} 37. Rc6 {[%clk 0:00:18]}  Rg3+ {[%clk 0:00:41]} 38. Kh2 {[%clk 0:00:17]}  Rg4+ {[%clk 0:00:38]} 39. Rxd6 {[%clk 0:00:17]}  Rxh4+ {[%clk 0:00:38]} 40. Kg3 {[%clk 0:00:17]}  Rxd4 {[%clk 0:00:38]} 41. Rxb6 {[%clk 0:00:15]}  Rd2 {[%clk 0:00:38]} 42. Rb4 {[%clk 0:00:14]}  d4 {[%clk 0:00:37]} 43. Rxa4 {[%clk 0:00:14]}  d3 {[%clk 0:00:37]} 44. Rd4 {[%clk 0:00:13]}  Rf5 {[%clk 0:00:32]} 45. Kg4 {[%clk 0:00:12]}  Rg5+ {[%clk 0:00:32]} 46. Kf4 {[%clk 0:00:12]}  Rgxg2 {[%clk 0:00:32]} 47. b4 {[%clk 0:00:13]}  Rg5 {[%clk 0:00:31]} 48. a4 {[%clk 0:00:12]}  Ra2 {[%clk 0:00:30]} 49. Rxd3 {[%clk 0:00:12]}  Rxa4 {[%clk 0:00:29]} 50. Rb3 {[%clk 0:00:13]}  Rxh5 {[%clk 0:00:28]} 51. Ke3 {[%clk 0:00:10]}  Rb5 {[%clk 0:00:27]} 52. Kd3 {[%clk 0:00:10]}  Rbxb4 {[%clk 0:00:27]} 0-1


[Site "https://www.chess.com"]

[Event "Titled Tuesday Blitz November 15 Late 2022"]
[White "Rosenberg, Evan S"]
[Black "Yuan, Qingyu"]
[WhiteFideId "2019299"]
[BlackFideId "8609772"]
[WhiteElo "2376"]
[BlackElo "2359"]
[Result "0-1"]
[Round "01"]
[TimeControl "180+1"]
[Date "2022.11.16"]
[WhiteClock "0:00:04"]
[BlackClock "0:00:35"]

1. d4 {[%clk 0:02:59]}  d5 {[%clk 0:02:58]} 2. Nf3 {[%clk 0:02:59]}  Nf6 {[%clk 0:02:58]} 3. c3 {[%clk 0:02:59]}  e6 {[%clk 0:02:56]} 4. Bf4 {[%clk 0:02:58]}  Bd6 {[%clk 0:02:55]} 5. e3 {[%clk 0:02:58]}  O-O {[%clk 0:02:55]} 6. Nbd2 {[%clk 0:02:53]}  c5 {[%clk 0:02:55]} 7. Bg3 {[%clk 0:02:53]}  Qc7 {[%clk 0:02:54]} 8. Bd3 {[%clk 0:02:49]}  Nbd7 {[%clk 0:02:53]} 9. e4 {[%clk 0:02:45]}  cxd4 {[%clk 0:02:48]} 10. cxd4 {[%clk 0:02:16]}  dxe4 {[%clk 0:02:48]} 11. Nxe4 {[%clk 0:02:15]}  Nxe4 {[%clk 0:02:44]} 12. Bxe4 {[%clk 0:02:14]}  Qa5+ {[%clk 0:02:45]} 13. Kf1 {[%clk 0:02:09]}  Nf6 {[%clk 0:02:42]} 14. Bc2 {[%clk 0:01:58]}  Bd7 {[%clk 0:02:36]} 15. Kg1 {[%clk 0:01:47]}  Qb6 {[%clk 0:02:20]} 16. Be5 {[%clk 0:01:30]}  Be7 {[%clk 0:01:54]} 17. Qd3 {[%clk 0:01:23]}  Bb5 {[%clk 0:01:48]} 18. Qd2 {[%clk 0:01:09]}  h6 {[%clk 0:01:31]} 19. h4 {[%clk 0:01:05]}  Bc6 {[%clk 0:01:12]} 20. Ng5 {[%clk 0:01:02]}  Rfd8 {[%clk 0:01:00]} 21. Bxf6 {[%clk 0:00:57]}  Bxf6 {[%clk 0:00:57]} 22. Bh7+ {[%clk 0:00:54]}  Kf8 {[%clk 0:00:53]} 23. Qc2 {[%clk 0:00:30]}  hxg5 {[%clk 0:00:48]} 24. hxg5 {[%clk 0:00:29]}  Bxg5 {[%clk 0:00:47]} 25. Re1 {[%clk 0:00:21]}  Qxd4 {[%clk 0:00:44]} 26. Bf5 {[%clk 0:00:15]}  Bh6 {[%clk 0:00:38]} 27. Bxe6 {[%clk 0:00:14]}  fxe6 {[%clk 0:00:37]} 28. Rxh6 {[%clk 0:00:09]}  gxh6 {[%clk 0:00:37]} 29. Qg6 {[%clk 0:00:06]}  Qg7 {[%clk 0:00:34]} 30. Qxe6 {[%clk 0:00:04]}  Qxg2# {[%clk 0:00:35]} 0-1


[Site "https://www.chess.com"]

[Event "Titled Tuesday Blitz November 15 Late 2022"]
[White "Sailer, Mike"]
[Black "Al-Tarboush, Ward"]
[WhiteFideId "2012901"]
[BlackFideId "7601450"]
[WhiteElo "2109"]
[BlackElo "2273"]
[Result "0-1"]
[Round "01"]
[TimeControl "180+1"]
[Date "2022.11.16"]
[WhiteClock "0:00:11"]
[BlackClock "0:01:39"]

1. Nf3 {[%clk 0:02:59]}  Nf6 {[%clk 0:02:58]} 2. c4 {[%clk 0:02:59]}  g6 {[%clk 0:02:57]} 3. g3 {[%clk 0:02:55]}  Bg7 {[%clk 0:02:56]} 4. Bg2 {[%clk 0:02:55]}  O-O {[%clk 0:02:56]} 5. O-O {[%clk 0:02:52]}  c6 {[%clk 0:02:56]} 6. Nc3 {[%clk 0:02:53]}  d5 {[%clk 0:02:56]} 7. cxd5 {[%clk 0:02:52]}  cxd5 {[%clk 0:02:56]} 8. d4 {[%clk 0:02:52]}  Nc6 {[%clk 0:02:56]} 9. Bf4 {[%clk 0:02:51]}  Bf5 {[%clk 0:02:54]} 10. Qb3 {[%clk 0:02:46]}  Na5 {[%clk 0:02:44]} 11. Qa4 {[%clk 0:02:33]}  Bd7 {[%clk 0:02:39]} 12. Qb4 {[%clk 0:02:21]}  Rc8 {[%clk 0:02:32]} 13. Ne5 {[%clk 0:02:09]}  Nc6 {[%clk 0:02:32]} 14. Nxc6 {[%clk 0:02:08]}  Bxc6 {[%clk 0:02:33]} 15. Rac1 {[%clk 0:02:00]}  a5 {[%clk 0:02:28]} 16. Qb3 {[%clk 0:01:50]}  Qd7 {[%clk 0:02:28]} 17. Be5 {[%clk 0:01:41]}  Rfd8 {[%clk 0:02:12]} 18. Rfd1 {[%clk 0:01:38]}  b5 {[%clk 0:02:07]} 19. a3 {[%clk 0:01:36]}  h5 {[%clk 0:02:03]} 20. Qa2 {[%clk 0:01:30]}  b4 {[%clk 0:02:01]} 21. axb4 {[%clk 0:01:26]}  axb4 {[%clk 0:02:02]} 22. Nb1 {[%clk 0:01:25]}  Ra8 {[%clk 0:02:02]} 23. Qb3 {[%clk 0:01:23]}  Ba4 {[%clk 0:02:01]} 24. Qxb4 {[%clk 0:01:24]}  Bxd1 {[%clk 0:02:01]} 25. Rxd1 {[%clk 0:01:22]}  Ra1 {[%clk 0:02:00]} 26. Qb3 {[%clk 0:01:10]}  Qf5 {[%clk 0:01:54]} 27. Nc3 {[%clk 0:01:07]}  Rxd1+ {[%clk 0:01:54]} 28. Qxd1 {[%clk 0:01:06]}  Ne4 {[%clk 0:01:53]} 29. Bxg7 {[%clk 0:01:03]}  Kxg7 {[%clk 0:01:54]} 30. Bxe4 {[%clk 0:00:51]}  dxe4 {[%clk 0:01:54]} 31. e3 {[%clk 0:00:48]}  h4 {[%clk 0:01:54]} 32. g4 {[%clk 0:00:37]}  Qf3 {[%clk 0:01:54]} 33. Qxf3 {[%clk 0:00:37]}  exf3 {[%clk 0:01:55]} 34. Kf1 {[%clk 0:00:33]}  Rb8 {[%clk 0:01:53]} 35. Nd1 {[%clk 0:00:32]}  Ra8 {[%clk 0:01:48]} 36. Ke1 {[%clk 0:00:31]}  h3 {[%clk 0:01:46]} 37. Kd2 {[%clk 0:00:30]}  Rh8 {[%clk 0:01:46]} 38. e4 {[%clk 0:00:27]}  Kf6 {[%clk 0:01:46]} 39. Ke3 {[%clk 0:00:27]}  Rb8 {[%clk 0:01:44]} 40. Kxf3 {[%clk 0:00:27]}  Rb3+ {[%clk 0:01:45]} 41. Ke2 {[%clk 0:00:24]}  Kg5 {[%clk 0:01:44]} 42. f3 {[%clk 0:00:14]}  Kf4 {[%clk 0:01:43]} 43. Nc3 {[%clk 0:00:12]}  Rxb2+ {[%clk 0:01:40]} 44. Kd3 {[%clk 0:00:13]}  Kxf3 {[%clk 0:01:40]} 45. e5 {[%clk 0:00:11]}  Rxh2 {[%clk 0:01:39]} 0-1


[Site "https://www.chess.com"]

[Event "Titled Tuesday Blitz November 15 Late 2022"]
[White "Salman, Pavel"]
[Black "Shimanov, Aleksandr"]
[WhiteFideId "24153753"]
[BlackFideId "4198603"]
[WhiteElo "2187"]
[BlackElo "2605"]
[Result "0-1"]
[Round "01"]
[TimeControl "180+1"]
[Date "2022.11.15"]
[WhiteClock "0:00:03"]
[BlackClock "0:00:35"]

1. Nf3 {[%clk 0:03:00]}  Nf6 {[%clk 0:02:58]} 2. g3 {[%clk 0:02:58]}  g6 {[%clk 0:02:59]} 3. Bg2 {[%clk 0:02:59]}  Bg7 {[%clk 0:03:00]} 4. O-O {[%clk 0:03:00]}  O-O {[%clk 0:03:00]} 5. d3 {[%clk 0:03:01]}  d6 {[%clk 0:03:01]} 6. Nbd2 {[%clk 0:03:01]}  c5 {[%clk 0:03:01]} 7. e4 {[%clk 0:03:01]}  Nc6 {[%clk 0:03:02]} 8. Re1 {[%clk 0:03:01]}  e5 {[%clk 0:03:00]} 9. a4 {[%clk 0:03:01]}  Rb8 {[%clk 0:02:59]} 10. Nc4 {[%clk 0:03:00]}  h6 {[%clk 0:02:59]} 11. Bd2 {[%clk 0:02:59]}  b6 {[%clk 0:02:58]} 12. Qc1 {[%clk 0:02:58]}  Kh7 {[%clk 0:02:58]} 13. c3 {[%clk 0:02:53]}  Be6 {[%clk 0:02:56]} 14. b3 {[%clk 0:02:53]}  a6 {[%clk 0:02:56]} 15. Qc2 {[%clk 0:02:51]}  b5 {[%clk 0:02:55]} 16. axb5 {[%clk 0:02:52]}  axb5 {[%clk 0:02:55]} 17. Ne3 {[%clk 0:02:50]}  b4 {[%clk 0:02:56]} 18. c4 {[%clk 0:02:49]}  Nd7 {[%clk 0:02:41]} 19. Ra6 {[%clk 0:02:44]}  Qc8 {[%clk 0:02:38]} 20. Rea1 {[%clk 0:02:42]}  Rb6 {[%clk 0:02:24]} 21. Rxb6 {[%clk 0:02:32]}  Nxb6 {[%clk 0:02:25]} 22. Nd5 {[%clk 0:02:33]}  Qb7 {[%clk 0:02:07]} 23. h4 {[%clk 0:02:11]}  Bg4 {[%clk 0:01:59]} 24. Be3 {[%clk 0:02:02]}  Ra8 {[%clk 0:01:42]} 25. Rxa8 {[%clk 0:02:01]}  Nxa8 {[%clk 0:01:43]} 26. Qd2 {[%clk 0:01:51]}  Qa6 {[%clk 0:01:39]} 27. Kh2 {[%clk 0:01:15]}  Nb6 {[%clk 0:01:17]} 28. Bxh6 {[%clk 0:00:58]}  Bxh6 {[%clk 0:01:12]} 29. Nf6+ {[%clk 0:00:52]}  Kg7 {[%clk 0:01:12]} 30. Ne8+ {[%clk 0:00:52]}  Kf8 {[%clk 0:01:12]} 31. Qxh6+ {[%clk 0:00:52]}  Kxe8 {[%clk 0:01:13]} 32. Ng5 {[%clk 0:00:50]}  Nd8 {[%clk 0:01:08]} 33. Nh7 {[%clk 0:00:44]}  Nd7 {[%clk 0:01:03]} 34. Qg7 {[%clk 0:00:30]}  Qa2 {[%clk 0:00:56]} 35. Kg1 {[%clk 0:00:11]}  Qb1+ {[%clk 0:00:56]} 36. Kh2 {[%clk 0:00:12]}  Qc2 {[%clk 0:00:57]} 37. Kg1 {[%clk 0:00:12]}  Qd1+ {[%clk 0:00:57]} 38. Kh2 {[%clk 0:00:12]}  Qe2 {[%clk 0:00:58]} 39. Kg1 {[%clk 0:00:13]}  Qe1+ {[%clk 0:00:58]} 40. Kh2 {[%clk 0:00:11]}  Qxf2 {[%clk 0:00:58]} 41. Ng5 {[%clk 0:00:12]}  Qf6 {[%clk 0:00:47]} 42. Qg8+ {[%clk 0:00:11]}  Ke7 {[%clk 0:00:48]} 43. Qh7 {[%clk 0:00:10]}  Ne6 {[%clk 0:00:45]} 44. Nxe6 {[%clk 0:00:08]}  Bxe6 {[%clk 0:00:45]} 45. Qh6 {[%clk 0:00:08]}  Nb8 {[%clk 0:00:42]} 46. Qc1 {[%clk 0:00:08]}  Nc6 {[%clk 0:00:43]} 47. Qa1 {[%clk 0:00:08]}  Nd4 {[%clk 0:00:38]} 48. Qa7+ {[%clk 0:00:08]}  Kf8 {[%clk 0:00:39]} 49. Qb8+ {[%clk 0:00:08]}  Kg7 {[%clk 0:00:39]} 50. Qxd6 {[%clk 0:00:08]}  Nxb3 {[%clk 0:00:39]} 51. Qb8 {[%clk 0:00:04]}  Nd4 {[%clk 0:00:37]} 52. Qb6 {[%clk 0:00:05]}  Qf2 {[%clk 0:00:35]} 53. Kh1 {[%clk 0:00:03]}  Ne2 {[%clk 0:00:35]} 0-1


[Site "https://www.chess.com"]

[Event "Titled Tuesday Blitz November 15 Late 2022"]
[White "Sarana, Alexey"]
[Black "Do Nascimento,Christian Almeida"]
[WhiteFideId "24133795"]
[BlackFideId "2143801"]
[WhiteElo "2708"]
[BlackElo "2079"]
[Result "1-0"]
[Round "01"]
[TimeControl "180+1"]
[Date "2022.11.15"]
[WhiteClock "0:00:53"]
[BlackClock "0:00:11"]

1. c4 {[%clk 0:03:00]}  e5 {[%clk 0:02:57]} 2. Nc3 {[%clk 0:03:00]}  Nc6 {[%clk 0:02:57]} 3. Nf3 {[%clk 0:03:00]}  Nf6 {[%clk 0:02:57]} 4. g3 {[%clk 0:02:59]}  d5 {[%clk 0:02:50]} 5. cxd5 {[%clk 0:02:59]}  Nxd5 {[%clk 0:02:50]} 6. Bg2 {[%clk 0:02:59]}  Be6 {[%clk 0:02:49]} 7. O-O {[%clk 0:02:53]}  Be7 {[%clk 0:02:46]} 8. d4 {[%clk 0:02:35]}  Nxc3 {[%clk 0:02:33]} 9. bxc3 {[%clk 0:02:35]}  exd4 {[%clk 0:02:33]} 10. cxd4 {[%clk 0:02:31]}  O-O {[%clk 0:02:32]} 11. e4 {[%clk 0:02:27]}  Bg4 {[%clk 0:02:32]} 12. Be3 {[%clk 0:02:22]}  Qc8 {[%clk 0:02:15]} 13. Qa4 {[%clk 0:02:14]}  Bh3 {[%clk 0:01:56]} 14. d5 {[%clk 0:02:13]}  Bxg2 {[%clk 0:01:56]} 15. Kxg2 {[%clk 0:02:14]}  Nb8 {[%clk 0:01:52]} 16. Rac1 {[%clk 0:02:14]}  Nd7 {[%clk 0:01:51]} 17. Rfd1 {[%clk 0:02:11]}  Bd6 {[%clk 0:01:42]} 18. Bd4 {[%clk 0:02:04]}  Qe8 {[%clk 0:01:36]} 19. Re1 {[%clk 0:01:57]}  f6 {[%clk 0:01:25]} 20. Nh4 {[%clk 0:01:54]}  Ne5 {[%clk 0:01:19]} 21. Qb3 {[%clk 0:01:54]}  Kh8 {[%clk 0:01:16]} 22. f4 {[%clk 0:01:47]}  Ng4 {[%clk 0:01:10]} 23. Nf5 {[%clk 0:01:45]}  Qh5 {[%clk 0:01:04]} 24. h3 {[%clk 0:01:43]}  Nh6 {[%clk 0:01:04]} 25. Nxd6 {[%clk 0:01:32]}  cxd6 {[%clk 0:01:02]} 26. Qxb7 {[%clk 0:01:27]}  Rab8 {[%clk 0:00:53]} 27. Qd7 {[%clk 0:01:27]}  Rfd8 {[%clk 0:00:51]} 28. Qe6 {[%clk 0:01:17]}  Qg6 {[%clk 0:00:48]} 29. f5 {[%clk 0:01:05]}  Qh5 {[%clk 0:00:42]} 30. Rc7 {[%clk 0:00:59]}  Re8 {[%clk 0:00:35]} 31. Qd7 {[%clk 0:00:57]}  Rg8 {[%clk 0:00:29]} 32. Bxf6 {[%clk 0:00:52]}  Nxf5 {[%clk 0:00:14]} 33. Qxf5 {[%clk 0:00:52]}  Qxf5 {[%clk 0:00:11]} 34. exf5 {[%clk 0:00:53]}  gxf6 {[%clk 0:00:11]} 35. Ree7 {[%clk 0:00:53]} 1-0


[Site "https://www.chess.com"]

[Event "Titled Tuesday Blitz November 15 Late 2022"]
[White "Sariego Figueredo, Wilfredo"]
[Black "Makridis, Dimitrios"]
[WhiteFideId "3500080"]
[BlackFideId "25864475"]
[WhiteElo "2309"]
[BlackElo "2272"]
[Result "0-1"]
[Round "01"]
[TimeControl "180+1"]
[Date "2022.11.16"]
[WhiteClock "0:00:03"]
[BlackClock "0:00:35"]

1. d4 {[%clk 0:02:54]}  Nf6 {[%clk 0:02:57]} 2. Bf4 {[%clk 0:02:54]}  c5 {[%clk 0:02:49]} 3. d5 {[%clk 0:02:52]}  e6 {[%clk 0:02:43]} 4. dxe6 {[%clk 0:02:48]}  fxe6 {[%clk 0:02:41]} 5. e3 {[%clk 0:02:44]}  Nc6 {[%clk 0:02:39]} 6. c4 {[%clk 0:02:40]}  d5 {[%clk 0:02:33]} 7. cxd5 {[%clk 0:02:36]}  exd5 {[%clk 0:02:34]} 8. Nc3 {[%clk 0:02:36]}  Be7 {[%clk 0:02:32]} 9. Nf3 {[%clk 0:02:29]}  O-O {[%clk 0:02:27]} 10. Be2 {[%clk 0:02:24]}  h6 {[%clk 0:02:21]} 11. h3 {[%clk 0:02:15]}  Be6 {[%clk 0:02:20]} 12. O-O {[%clk 0:02:07]}  a6 {[%clk 0:02:19]} 13. Ne5 {[%clk 0:01:52]}  Nxe5 {[%clk 0:02:05]} 14. Bxe5 {[%clk 0:01:53]}  Qd7 {[%clk 0:02:06]} 15. Bf3 {[%clk 0:01:46]}  Rad8 {[%clk 0:01:59]} 16. Qe2 {[%clk 0:01:38]}  Bf7 {[%clk 0:01:14]} 17. Rfd1 {[%clk 0:01:32]}  Qe6 {[%clk 0:01:13]} 18. Bxf6 {[%clk 0:01:19]}  Bxf6 {[%clk 0:01:09]} 19. Nxd5 {[%clk 0:01:11]}  Be5 {[%clk 0:01:08]} 20. Nc3 {[%clk 0:01:04]}  b5 {[%clk 0:01:05]} 21. Ne4 {[%clk 0:00:40]}  Rxd1+ {[%clk 0:00:56]} 22. Qxd1 {[%clk 0:00:33]}  Bxb2 {[%clk 0:00:55]} 23. Rb1 {[%clk 0:00:27]}  Ba3 {[%clk 0:00:44]} 24. Rb3 {[%clk 0:00:19]}  Bb4 {[%clk 0:00:44]} 25. Rd3 {[%clk 0:00:17]}  Qxa2 {[%clk 0:00:38]} 26. Rd8 {[%clk 0:00:16]}  c4 {[%clk 0:00:39]} 27. Rxf8+ {[%clk 0:00:16]}  Bxf8 {[%clk 0:00:40]} 28. Qd8 {[%clk 0:00:15]}  Qa1+ {[%clk 0:00:40]} 29. Kh2 {[%clk 0:00:15]}  Qe5+ {[%clk 0:00:40]} 30. Kg1 {[%clk 0:00:14]}  c3 {[%clk 0:00:41]} 31. Nxc3 {[%clk 0:00:08]}  Qxc3 {[%clk 0:00:39]} 32. Qb8 {[%clk 0:00:05]}  b4 {[%clk 0:00:35]} 33. Qb7 {[%clk 0:00:03]}  b3 {[%clk 0:00:34]} 34. g3 {[%clk 0:00:02]}  b2 {[%clk 0:00:34]} 35. Bd5 {[%clk 0:00:02]}  Bxd5 {[%clk 0:00:33]} 36. Qxd5+ {[%clk 0:00:02]}  Kh8 {[%clk 0:00:34]} 37. Qb7 {[%clk 0:00:02]}  Qc1+ {[%clk 0:00:34]} 38. Kg2 {[%clk 0:00:02]}  b1=Q {[%clk 0:00:35]} 39. Qf7 {[%clk 0:00:03]}  Qh1# {[%clk 0:00:35]} 0-1


[Site "https://www.chess.com"]

[Event "Titled Tuesday Blitz November 15 Late 2022"]
[White "Sarkar, Justin"]
[Black "Fernandez Guillen, Ernesto J."]
[WhiteFideId "2010011"]
[BlackFideId "3512428"]
[WhiteElo "2239"]
[BlackElo "2450"]
[Result "0-1"]
[Round "01"]
[TimeControl "180+1"]
[Date "2022.11.16"]
[WhiteClock "0:00:02"]
[BlackClock "0:00:31"]

1. d4 {[%clk 0:02:59]}  Nf6 {[%clk 0:02:50]} 2. c4 {[%clk 0:02:58]}  g6 {[%clk 0:02:49]} 3. Nc3 {[%clk 0:02:57]}  d5 {[%clk 0:02:50]} 4. Qb3 {[%clk 0:02:41]}  dxc4 {[%clk 0:02:46]} 5. Qxc4 {[%clk 0:02:41]}  Bg7 {[%clk 0:02:40]} 6. e4 {[%clk 0:02:40]}  O-O {[%clk 0:02:39]} 7. Be2 {[%clk 0:02:39]}  a6 {[%clk 0:02:39]} 8. Nf3 {[%clk 0:02:24]}  Nbd7 {[%clk 0:02:38]} 9. e5 {[%clk 0:02:21]}  Nb6 {[%clk 0:02:29]} 10. exf6 {[%clk 0:02:16]}  Nxc4 {[%clk 0:02:29]} 11. fxg7 {[%clk 0:02:16]}  Kxg7 {[%clk 0:02:30]} 12. Bxc4 {[%clk 0:02:16]}  b5 {[%clk 0:02:27]} 13. Be2 {[%clk 0:02:08]}  Bb7 {[%clk 0:02:27]} 14. Be3 {[%clk 0:02:02]}  h6 {[%clk 0:02:19]} 15. O-O {[%clk 0:01:59]}  Qd6 {[%clk 0:02:20]} 16. Rac1 {[%clk 0:01:55]}  Rfd8 {[%clk 0:02:20]} 17. Rfd1 {[%clk 0:01:47]}  Rac8 {[%clk 0:02:19]} 18. Nb1 {[%clk 0:01:35]}  Bd5 {[%clk 0:02:16]} 19. a3 {[%clk 0:01:31]}  Kh7 {[%clk 0:02:13]} 20. Nbd2 {[%clk 0:01:24]}  c6 {[%clk 0:02:10]} 21. Bd3 {[%clk 0:01:21]}  Qe6 {[%clk 0:02:08]} 22. Re1 {[%clk 0:01:18]}  Qf6 {[%clk 0:02:00]} 23. Ne4 {[%clk 0:01:08]}  Qg7 {[%clk 0:01:59]} 24. Ne5 {[%clk 0:01:03]}  Bxe4 {[%clk 0:01:35]} 25. Bxe4 {[%clk 0:01:02]}  c5 {[%clk 0:01:36]} 26. Nc6 {[%clk 0:00:30]}  cxd4 {[%clk 0:01:32]} 27. Nxd8 {[%clk 0:00:27]}  Rxd8 {[%clk 0:01:28]} 28. Bd2 {[%clk 0:00:25]}  f5 {[%clk 0:01:19]} 29. Bd3 {[%clk 0:00:18]}  e5 {[%clk 0:01:20]} 30. f3 {[%clk 0:00:18]}  Re8 {[%clk 0:01:19]} 31. Re2 {[%clk 0:00:06]}  Qf6 {[%clk 0:01:11]} 32. Rce1 {[%clk 0:00:05]}  g5 {[%clk 0:00:52]} 33. g4 {[%clk 0:00:04]}  e4 {[%clk 0:00:42]} 34. fxe4 {[%clk 0:00:04]}  fxe4 {[%clk 0:00:42]} 35. Bxe4+ {[%clk 0:00:04]}  Kg7 {[%clk 0:00:41]} 36. Bd3 {[%clk 0:00:04]}  Rxe2 {[%clk 0:00:42]} 37. Rxe2 {[%clk 0:00:04]}  Qc6 {[%clk 0:00:37]} 38. Rf2 {[%clk 0:00:03]}  Qd7 {[%clk 0:00:34]} 39. h3 {[%clk 0:00:04]}  Qc7 {[%clk 0:00:34]} 40. Kg2 {[%clk 0:00:04]}  Qc6+ {[%clk 0:00:34]} 41. Rf3 {[%clk 0:00:04]}  Qe6 {[%clk 0:00:33]} 42. Kf2 {[%clk 0:00:04]}  Qb3 {[%clk 0:00:32]} 43. Bc1 {[%clk 0:00:03]}  Qd1 {[%clk 0:00:32]} 44. Bd2 {[%clk 0:00:03]}  Qxd2+ {[%clk 0:00:32]} 45. Be2 {[%clk 0:00:03]}  Qxb2 {[%clk 0:00:33]} 46. Rf5 {[%clk 0:00:03]}  d3 {[%clk 0:00:32]} 47. Rd5 {[%clk 0:00:02]}  Qxe2+ {[%clk 0:00:31]} 0-1


[Site "https://www.chess.com"]

[Event "Titled Tuesday Blitz November 15 Late 2022"]
[White "Sattarov, Bobir"]
[Black "Mickiewicz, Piotr"]
[WhiteFideId "14203081"]
[BlackFideId "1114891"]
[WhiteElo "2354"]
[BlackElo "2246"]
[Result "1-0"]
[Round "01"]
[TimeControl "180+1"]
[Date "2022.11.16"]
[WhiteClock "0:00:10"]
[BlackClock "0:00:12"]

1. e4 {[%clk 0:02:56]}  c6 {[%clk 0:02:53]} 2. c4 {[%clk 0:02:55]}  d5 {[%clk 0:02:54]} 3. exd5 {[%clk 0:02:56]}  cxd5 {[%clk 0:02:52]} 4. cxd5 {[%clk 0:02:57]}  Nf6 {[%clk 0:02:52]} 5. Qa4+ {[%clk 0:02:57]}  Nbd7 {[%clk 0:02:50]} 6. Nc3 {[%clk 0:02:57]}  g6 {[%clk 0:02:49]} 7. Bc4 {[%clk 0:02:57]}  Bg7 {[%clk 0:02:49]} 8. d3 {[%clk 0:02:57]}  O-O {[%clk 0:02:49]} 9. Nf3 {[%clk 0:02:56]}  Nb6 {[%clk 0:02:44]} 10. Qb3 {[%clk 0:02:55]}  Bd7 {[%clk 0:02:43]} 11. O-O {[%clk 0:02:54]}  Rc8 {[%clk 0:02:35]} 12. Be3 {[%clk 0:02:44]}  Ne8 {[%clk 0:02:32]} 13. Ne4 {[%clk 0:02:20]}  Nd6 {[%clk 0:02:30]} 14. Nxd6 {[%clk 0:02:17]}  exd6 {[%clk 0:02:31]} 15. Rac1 {[%clk 0:02:11]}  Bg4 {[%clk 0:02:10]} 16. Nd4 {[%clk 0:02:09]}  Re8 {[%clk 0:01:58]} 17. Nb5 {[%clk 0:02:04]}  Nxc4 {[%clk 0:01:51]} 18. dxc4 {[%clk 0:02:04]}  a6 {[%clk 0:01:51]} 19. Nd4 {[%clk 0:02:01]}  Qe7 {[%clk 0:01:26]} 20. h3 {[%clk 0:01:56]}  Bd7 {[%clk 0:01:00]} 21. Qxb7 {[%clk 0:01:30]}  Rb8 {[%clk 0:01:00]} 22. Qxa6 {[%clk 0:01:27]}  Rxb2 {[%clk 0:00:58]} 23. Nb5 {[%clk 0:01:10]}  Be5 {[%clk 0:00:45]} 24. Qa7 {[%clk 0:00:35]}  Bxb5 {[%clk 0:00:34]} 25. Qxe7 {[%clk 0:00:32]}  Rxe7 {[%clk 0:00:35]} 26. cxb5 {[%clk 0:00:32]}  Rxb5 {[%clk 0:00:34]} 27. Rfd1 {[%clk 0:00:25]}  Ra5 {[%clk 0:00:33]} 28. Rc2 {[%clk 0:00:24]}  Kg7 {[%clk 0:00:29]} 29. Kf1 {[%clk 0:00:22]}  h5 {[%clk 0:00:28]} 30. Rd3 {[%clk 0:00:22]}  h4 {[%clk 0:00:25]} 31. a3 {[%clk 0:00:20]}  Bf6 {[%clk 0:00:24]} 32. Bd2 {[%clk 0:00:19]}  Ra4 {[%clk 0:00:24]} 33. Bb4 {[%clk 0:00:18]}  Be5 {[%clk 0:00:24]} 34. Rc4 {[%clk 0:00:17]}  g5 {[%clk 0:00:23]} 35. Re3 {[%clk 0:00:13]}  Kg6 {[%clk 0:00:22]} 36. f4 {[%clk 0:00:10]}  gxf4 {[%clk 0:00:22]} 37. Rxf4 {[%clk 0:00:10]}  Rc7 {[%clk 0:00:21]} 38. Rg4+ {[%clk 0:00:10]}  Kf5 {[%clk 0:00:21]} 39. Rf3+ {[%clk 0:00:10]}  Bf4 {[%clk 0:00:17]} 40. Rfxf4+ {[%clk 0:00:10]}  Ke5 {[%clk 0:00:17]} 41. Bc3+ {[%clk 0:00:10]}  Kxd5 {[%clk 0:00:17]} 42. Rxa4 {[%clk 0:00:11]}  Rxc3 {[%clk 0:00:17]} 43. Rxh4 {[%clk 0:00:10]}  Rc2 {[%clk 0:00:17]} 44. Kg1 {[%clk 0:00:10]}  f5 {[%clk 0:00:16]} 45. Kh2 {[%clk 0:00:10]}  Ke5 {[%clk 0:00:16]} 46. Ra5+ {[%clk 0:00:11]}  d5 {[%clk 0:00:16]} 47. Rh8 {[%clk 0:00:10]}  f4 {[%clk 0:00:14]} 48. Re8+ {[%clk 0:00:10]}  Kd6 {[%clk 0:00:13]} 49. Rf8 {[%clk 0:00:11]}  Ke5 {[%clk 0:00:13]} 50. h4 {[%clk 0:00:11]}  Ra2 {[%clk 0:00:13]} 51. Kh3 {[%clk 0:00:11]}  Ke4 {[%clk 0:00:14]} 52. Re8+ {[%clk 0:00:10]}  Kd4 {[%clk 0:00:12]} 53. Ra4+ {[%clk 0:00:10]}  Kc5 {[%clk 0:00:12]} 54. Rxf4 {[%clk 0:00:11]}  Rxa3+ {[%clk 0:00:12]} 55. Rf3 {[%clk 0:00:11]}  Ra1 {[%clk 0:00:12]} 56. Re5 {[%clk 0:00:11]}  Kd6 {[%clk 0:00:12]} 57. Rg5 {[%clk 0:00:10]} 1-0


[Site "https://www.chess.com"]